fUST/lending_fUST_20250827
["ID","MTS","AMOUNT","RATE_DAILY","PERIOD"]
[381467764,1756224106112,642.91052997,0.000199,2]
[381467765,1756224106176,642.91052975,0.00023353,2]
[381467766,1756224106437,642.91052975,0.00026806,6]
[381467767,1756224106726,642.91052975,0.00021627,2]
[381467768,1756224106955,642.91052975,0.0002508,2]
[381467769,1756224125982,162.583061,0.00013699,2]
[381467770,1756224126239,162.583061,0.00023182,2]
[381467772,1756224173893,-208.01876055,0.00027976,2]
[381467773,1756224176283,-199.0,0.00027976,2]
[381467774,1756224285231,555.13900449,0.00021627,2]
[381467775,1756224285351,555.13900455,0.000199,2]
[381467776,1756224285626,555.13900449,0.0002508,2]
[381467777,1756224285845,555.13900449,0.00026806,6]
[381467778,1756224286106,555.13900449,0.00023353,2]
[381467779,1756224370301,485.865323,0.00025778,2]
[381467780,1756224370640,344.12643432,0.00026044,2]
[381467781,1756224370662,141.73888868,0.00026044,2]
[381467782,1756224410163,-261.72664331,0.00027137,2]
[381467783,1756224410184,-160.0,0.00027976,2]
[381467784,1756224410204,-667.27717272,0.00027976,2]
[381467788,1756224434124,-566.02976433,0.00027976,2]
[381467789,1756224434158,-450.86620755,0.00028533,10]
[381467790,1756224451874,447.58696349,0.000199,2]
[381467791,1756224451933,447.58696349,0.00023353,2]
[381467792,1756224452280,447.58696349,0.00021627,2]
[381467793,1756224452675,447.58696349,0.00026806,6]
[381467794,1756224481037,218.74,0.00018581,2]
[381467795,1756224481321,218.74,0.00018581,2]
[381467797,1756224622918,387.90870173,0.000199,2]
[381467798,1756224623378,387.90870169,0.0002508,2]
[381467799,1756224623427,387.90870169,0.00023353,2]
[381468266,1756224638648,-194.00002512,0.00029023,98]
[381468267,1756224638658,-1200.0,0.00029123,2]
[381468269,1756224638668,-186.86483727,0.00029125,22]
[381468271,1756224638678,-692.84597653,0.00029155,2]
[381468273,1756224638688,-213.17967525,0.00029155,2]
[381468275,1756224638698,-300.0,0.00029199,2]
[381468277,1756224638708,-300.0,0.00029199,2]
[381468279,1756224638718,-1200.0,0.00029199,2]
[381468281,1756224638728,-365.60859336,0.000292,5]
[381468282,1756224638739,-500.0,0.000292,5]
[381468284,1756224638749,-501.78666609,0.000292,5]
[381468286,1756224638759,-50000.0,0.000292,2]
[381468288,1756224638770,-151.47,0.00029255,15]
[381468290,1756224638779,-600.0,0.00029709,20]
[381468292,1756224638789,-502.46455858,0.00029748,5]
[381468295,1756224638800,-213.17967523,0.00030023,2]
[381468297,1756224638811,-168.0,0.00030056,2]
[381468299,1756224638821,-232.53539143,0.00030318,2]
[381468300,1756224638830,-845.07960918,0.00030318,2]
[381468302,1756224638840,-216.09257821,0.00030318,2]
[381468304,1756224638850,-12704.43797926,0.00030338,2]
[381468306,1756224638859,-376.39720582,0.00030369,2]
[381468308,1756224638868,-160.0,0.00030369,2]
[381468310,1756224638878,-160.0,0.00030369,2]
[381468312,1756224638888,-160.0,0.00030369,2]
[381468315,1756224638898,-160.0,0.00030369,2]
[381468317,1756224638908,-1201.57,0.00030809,2]
[381468319,1756224638917,-1201.57,0.00030809,2]
[381468321,1756224638926,-1201.57,0.00030809,2]
[381468323,1756224638936,-1201.57,0.00030809,2]
[381468325,1756224638945,-1201.57,0.00030809,2]
[381468327,1756224638955,-1201.57,0.00030809,2]
[381468329,1756224638966,-1201.57,0.00030809,2]
[381468331,1756224638975,-1201.57,0.00030809,2]
[381468333,1756224638984,-168.0,0.0003082,2]
[381468335,1756224638994,-1020.81,0.0003088,2]
[381468337,1756224639004,-820.78844194,0.0003089,2]
[381468339,1756224639013,-155.800931,0.0003089,2]
[381468341,1756224639023,-213.17967523,0.0003089,2]
[381468343,1756224639037,-1462.92940203,0.00030947,2]
[381468345,1756224639046,-474.42,0.0003097,3]
[381468347,1756224639058,-500.0,0.00030979,2]
[381468349,1756224639068,-500.0,0.00030979,2]
[381468351,1756224639079,-500.0,0.00030979,2]
[381468353,1756224639089,-500.0,0.00030979,2]
[381468355,1756224639100,-500.0,0.00030979,2]
[381468357,1756224639112,-500.0,0.00030979,2]
[381468359,1756224639122,-500.0,0.00030979,2]
[381468361,1756224639132,-500.0,0.00030979,2]
[381468363,1756224639142,-500.0,0.00030979,2]
[381468365,1756224639152,-500.0,0.00030979,2]
[381468367,1756224639162,-500.0,0.00030979,2]
[381468369,1756224639172,-500.0,0.00030979,2]
[381468371,1756224639181,-500.0,0.00030979,2]
[381468373,1756224639190,-500.0,0.00030979,2]
[381468375,1756224639200,-500.0,0.00030979,2]
[381468377,1756224639210,-500.0,0.00030979,2]
[381468379,1756224639219,-500.0,0.00030979,2]
[381468381,1756224639229,-500.0,0.00030979,2]
[381468383,1756224639238,-500.0,0.00030979,2]
[381468385,1756224639248,-500.0,0.00030979,2]
[381468387,1756224639258,-500.0,0.00030979,2]
[381468389,1756224639267,-500.0,0.00030979,2]
[381468391,1756224639277,-500.0,0.00030979,2]
[381468393,1756224639287,-413.76188728,0.00030979,2]
[381468395,1756224639296,-500.0,0.00030979,2]
[381468397,1756224639306,-168.039972,0.00030979,2]
[381468399,1756224639315,-325.21,0.00030979,2]
[381468401,1756224639325,-38720.48481262,0.0003098,2]
[381468405,1756224639356,-33119.19453455,0.0003098,2]
[381468533,1756224640421,-179.84264996,0.0003098,2]
[381468784,1756224643374,-284.68170774,0.0003097,10]
[381468791,1756224643425,-474.41829226,0.0003097,10]
[381468792,1756224643435,-534.92657042,0.0003098,2]
[381468954,1756224646378,-34219.7594729,0.0003098,2]
[381468963,1756224646592,-218056.00739355,0.0003098,2]
[381468964,1756224646602,-350768.82875957,0.0003099,2]
[381468965,1756224795976,349.11783155,0.000199,2]
[381468966,1756224796086,349.11783152,0.00023353,2]
[381468967,1756224796352,349.11783152,0.0002508,2]
[381468971,1756224962961,314.20604836,0.00021627,2]
[381468972,1756224963181,314.20604836,0.00026806,6]
[381468973,1756224963923,314.20604836,0.00023353,2]
[381468974,1756225129050,282.78544359,0.000199,2]
[381468975,1756225129312,282.78544353,0.00026806,6]
[381468977,1756225168097,162.4575,0.00013699,2]
[381468978,1756225168331,162.4575,0.00023973,2]
[381468979,1756225294603,263.93308086,0.000199,2]
[381468980,1756225294668,263.93308062,0.00026806,6]
[381468981,1756225294955,263.93308062,0.0002508,2]
[381468982,1756225295412,263.93308062,0.00023353,2]
[381468983,1756225461449,228.74200332,0.000199,2]
[381468984,1756225461589,228.7420032,0.00026806,6]
[381468985,1756225461811,228.7420032,0.00021627,2]
[381468986,1756225461916,228.7420032,0.0002508,2]
[381468987,1756225462459,228.7420032,0.00023353,2]
[381468988,1756225463262,300.76,0.00026,2]
[381469003,1756225583751,2249.78339173,0.00026,2]
[381469004,1756225583774,1015.09923491,0.00026,2]
[381469005,1756225628235,381.236672,0.000199,2]
[381469006,1756225628447,381.236672,0.00023476,2]
[381469007,1756225628563,381.236672,0.00027053,6]
[381469008,1756225648387,-254.20905059,0.00028863,2]
[381469009,1756225648413,-168.0,0.00029956,2]
[381469010,1756225648434,-1001.62966868,0.0003,2]
[381469011,1756225648459,-168.0,0.00030131,2]
[381469012,1756225648479,-606.24022949,0.00030218,2]
[381469013,1756225648500,-174.0,0.00030315,2]
[381469014,1756225648521,-400.0,0.00030315,2]
[381469015,1756225648541,-1517.0,0.00030315,2]
[381469016,1756225648563,-516.98398773,0.00030316,2]
[381469017,1756225648584,-337.05288046,0.00030316,2]
[381469018,1756225648604,-21231.1297505,0.00030317,2]
[381469019,1756225672967,7224.38270932,0.00018,2]
[381469020,1756225683091,616.81803977,0.00024774,2]
[381469021,1756225683117,9652.28330138,0.00024774,2]
[381469027,1756225704218,271.90332707,0.00021,2]
[381469028,1756225706885,75.82337155,0.000176,2]
[381469029,1756225706907,1816.60601967,0.000176,2]
[381469030,1756225716633,-311.75276728,0.000275,2]
[381469031,1756225716881,8183.40398033,0.00017,2]
[381469032,1756225716902,10000.01,0.00017,2]
[381469033,1756225716924,10000.01,0.00017,2]
[381469034,1756225716945,10000.01,0.00017,2]
[381469035,1756225716968,2879.86825605,0.00017,2]
[381469036,1756225719605,7120.14174395,0.00025,2]
[381469037,1756225719627,10000.01,0.00025,2]
[381469038,1756225719649,10000.01,0.00025,2]
[381469039,1756225719670,10000.01,0.00025,2]
[381469040,1756225719690,10000.01,0.00025,2]
[381469041,1756225719711,10000.01,0.00025,2]
[381469042,1756225719739,2345.60904316,0.00025,2]
[381469043,1756225722451,-416.51649323,0.000275,2]
[381469044,1756225725372,4227.75939334,0.0002,2]
[381469045,1756225726093,661.08605119,0.000245,2]
[381469046,1756225726400,-152.39672156,0.000275,2]
[381469051,1756225727885,205.09382744,0.00023,2]
[381469052,1756225728082,9062.31330127,0.0002465,2]
[381469053,1756225728127,323.88419175,0.00021,2]
[381469054,1756225728424,1000.0,0.000235,2]
[381469055,1756225729065,4101.71966113,0.0002,2]
[381469056,1756225729392,-160.11626619,0.000275,2]
[381469057,1756225730197,55726.78009868,0.00019063,2]
[381469058,1756225732771,-178.83402617,0.000275,2]
[381469059,1756225736504,-229.06,0.000275,2]
[381469060,1756225742072,313.43194277,0.000271,2]
[381469061,1756225743319,-171.58,0.000275,2]
[381469062,1756225748138,-300.0,0.00027499,2]
[381469063,1756225748159,-18081.18458296,0.000275,2]
[381469072,1756225795429,1107.83026189,0.000199,2]
[381469073,1756225795834,1047.76356221,0.00021627,2]
[381469074,1756225795858,60.06669948,0.00021627,2]
[381469075,1756225795950,1107.83026169,0.00026806,6]
[381469076,1756225796139,175.35781242,0.00023353,2]
[381469077,1756225796166,932.47244927,0.00023353,2]
[381469078,1756225796408,1107.83026169,0.0002508,2]
[381469079,1756225805540,592.0,0.00026139,2]
[381469092,1756225832491,-876.09055591,0.00029,2]
[381469093,1756225832502,-18610.22,0.0003,30]
[381469094,1756225832512,-5000.0,0.00030013,2]
[381469095,1756225832522,-155.20002008,0.00030216,104]
[381469097,1756225832532,-6638.30854071,0.00030363,2]
[381469166,1756225838348,5000.0,0.000271,2]
[381469183,1756225838502,-289.23943122,0.00030363,2]
[381469190,1756225838559,-5776.89000733,0.00030363,2]
[381469192,1756225838569,-160.0,0.0003038,2]
[381469194,1756225838579,-232.53539143,0.0003038,2]
[381469196,1756225838589,-216.09257821,0.0003038,2]
[381469198,1756225838599,-217.18350301,0.00030407,2]
[381469200,1756225838608,-300.0,0.00030599,20]
[381469202,1756225838618,-300.0,0.00030599,20]
[381469204,1756225838627,-1000.0,0.0003098,2]
[381469206,1756225838636,-1000.0,0.0003098,2]
[381469208,1756225838646,-1000.0,0.0003098,2]
[381469210,1756225838655,-1000.0,0.0003098,2]
[381469212,1756225838665,-1000.0,0.0003098,2]
[381469214,1756225838674,-1000.0,0.0003098,2]
[381469216,1756225838684,-1000.0,0.0003098,2]
[381469218,1756225838693,-1000.0,0.0003098,2]
[381469220,1756225838703,-1000.0,0.0003098,2]
[381469222,1756225838712,-1000.0,0.0003098,2]
[381469224,1756225838721,-1000.0,0.0003098,2]
[381469226,1756225838730,-1000.0,0.0003098,2]
[381469228,1756225838740,-1000.0,0.0003098,2]
[381469230,1756225838749,-1000.0,0.0003098,2]
[381469232,1756225838759,-1000.0,0.0003098,2]
[381469234,1756225838768,-1000.0,0.0003098,2]
[381469236,1756225838778,-1000.0,0.0003098,2]
[381469238,1756225838788,-1000.0,0.0003098,2]
[381469240,1756225838798,-1000.0,0.0003098,2]
[381469242,1756225838807,-225.27595614,0.0003098,2]
[381469244,1756225838816,-302.72884173,0.0003099,2]
[381469247,1756225838828,-2000.0,0.00031,5]
[381469249,1756225838838,-376.39720582,0.00031,7]
[381469251,1756225838847,-168.0,0.00031002,2]
[381469253,1756225838857,-181.146,0.00031002,28]
[381469254,1756225838866,-559.37,0.00031036,10]
[381469257,1756225838876,-539.35,0.00031036,10]
[381469259,1756225838885,-50000.0,0.00031046,2]
[381469261,1756225838895,-1140.22,0.000311,7]
[381469263,1756225838904,-155.80093096,0.00031279,2]
[381469265,1756225838913,-158.14,0.00031359,3]
[381469267,1756225838922,-474.42,0.00031359,3]
[381469269,1756225838931,-500.0,0.00031368,2]
[381469270,1756225838941,-500.0,0.00031368,2]
[381469272,1756225838951,-228.52495911,0.00031368,2]
[381469275,1756225838961,-500.0,0.00031368,2]
[381469277,1756225838970,-500.0,0.00031368,2]
[381469279,1756225838980,-153.05600634,0.00031368,2]
[381469281,1756225838990,-500.0,0.00031368,2]
[381469283,1756225839000,-500.0,0.00031368,2]
[381469285,1756225839010,-500.0,0.00031368,2]
[381469287,1756225839020,-500.0,0.00031368,2]
[381469289,1756225839030,-500.0,0.00031368,2]
[381469290,1756225839039,-500.0,0.00031368,2]
[381469292,1756225839048,-47842.48362187,0.00031369,2]
[381469306,1756225839162,-2930.47172972,0.00031369,2]
[381469704,1756225843624,-8304.59466,0.00031369,2]
[381470002,1756225846728,-202650.06363667,0.00031369,2]
[381470470,1756225905322,259.0,8.8e-07,2]
[381470471,1756225961872,1471.78827571,0.000199,2]
[381470472,1756225962029,1471.78827561,0.00026806,6]
[381470473,1756225962066,1471.78827561,0.00021627,2]
[381470474,1756225962184,1471.78827561,0.00023353,2]
[381470475,1756225962734,1471.78827561,0.0002508,2]
[381470476,1756225992926,592.0,0.00026319,2]
[381470477,1756226043128,2049.06862185,0.000271,2]
[381470478,1756226043153,2950.93137815,0.000271,2]
[381470479,1756226059920,5000.0,0.000271,2]
[381470480,1756226076322,2049.07862185,0.000271,2]
[381470481,1756226076347,2950.92137815,0.000271,2]
[381470482,1756226084218,5000.0,0.000271,2]
[381470483,1756226092104,2049.08862185,0.000271,2]
[381470484,1756226092128,2950.91137815,0.000271,2]
[381470485,1756226100806,1653.12670083,0.000271,2]
[381470486,1756226118834,208.09612525,0.00025205,2]
[381470487,1756226128111,1683.49784353,0.000199,2]
[381470488,1756226128574,1683.49784329,0.00023353,2]
[381470489,1756226128738,1683.49784329,0.00026806,6]
[381470490,1756226128830,137.38226566,0.00021627,2]
[381470491,1756226128858,1546.11557763,0.00021627,2]
[381470492,1756226129140,1683.49784329,0.0002508,2]
[381470493,1756226129556,-187.21318817,0.00027963,2]
[381470494,1756226136449,-196.57057927,0.00027963,2]
[381470495,1756226164371,592.0,0.00026251,2]
[381470498,1756226294634,1415.70766184,0.000199,2]
[381470499,1756226294853,1415.70766165,0.00026806,6]
[381470500,1756226295052,1415.70766165,0.00023353,2]
[381470501,1756226295350,1415.70766165,0.00021627,2]
[381470502,1756226301215,515.56593229,0.000271,2]
[381470503,1756226301236,4484.43406771,0.000271,2]
[381470504,1756226318043,5000.0,0.000271,2]
[381470505,1756226333975,515.57593229,0.000271,2]
[381470506,1756226333998,4484.42406771,0.000271,2]
[381470507,1756226350535,5000.0,0.000271,2]
[381470508,1756226358529,361.56773111,0.000271,2]
[381470509,1756226375627,154.01820118,0.000271,2]
[381470510,1756226375649,4845.98179882,0.000271,2]
[381470511,1756226392150,5000.0,0.000271,2]
[381470512,1756226407398,154.02820118,0.000271,2]
[381470513,1756226407424,4845.97179882,0.000271,2]
[381470514,1756226424399,5000.0,0.000271,2]
[381470515,1756226440358,154.03820118,0.000271,2]
[381470516,1756226440421,4845.96179882,0.000271,2]
[381470517,1756226440526,162.429497,0.00013699,2]
[381470518,1756226440755,162.429497,0.00021404,2]
[381470520,1756226445175,1123.24,0.00032071,60]
[381470522,1756226465839,1227.36126495,0.000199,2]
[381470523,1756226466095,1227.36126477,0.00021627,2]
[381470524,1756226466585,1227.36126477,0.00023353,2]
[381470525,1756226466623,1147.10541269,0.00026806,6]
[381470526,1756226466652,80.25585208,0.00026806,6]
[381470527,1756226633739,1067.83143638,0.000199,2]
[381470528,1756226633842,1067.83143632,0.00023353,2]
[381470529,1756226634196,1067.83143632,0.00021627,2]
[381470530,1756226634307,1067.83143632,0.0002508,2]
[381470531,1756226634667,1067.83143632,0.00026806,6]
[381470532,1756226648180,4580.59696626,0.000271,2]
[381470533,1756226648203,419.40303374,0.000271,2]
[381470534,1756226663619,5000.0,0.000271,2]
[381470535,1756226679073,4580.60696626,0.000271,2]
[381470536,1756226679096,419.39303374,0.000271,2]
[381470537,1756226695185,5000.0,0.000271,2]
[381470538,1756226711100,4580.61696626,0.000271,2]
[381470539,1756226711124,419.38303374,0.000271,2]
[381470540,1756226726735,5000.0,0.000271,2]
[381470541,1756226743521,4580.62696626,0.000271,2]
[381470542,1756226743545,419.37303374,0.000271,2]
[381470543,1756226759939,5000.0,0.000271,2]
[381470544,1756226776104,5000.0,0.0002796,2]
[381470545,1756226783778,461.83225,0.00025778,2]
[381470546,1756226784223,452.72221568,0.00026044,2]
[381470547,1756226784619,226.36110784,0.00027677,2]
[381470548,1756226792479,5000.0,0.000271,2]
[381470549,1756226804932,890.28083886,0.000199,2]
[381470550,1756226805409,890.28083877,0.00026806,6]
[381470551,1756226805444,890.28083877,0.00021627,2]
[381470552,1756226805554,890.28083877,0.0002508,2]
[381470553,1756226805913,890.28083877,0.00023353,2]
[381470554,1756226808802,548.60580606,0.000271,2]
[381470555,1756226808825,4451.39419394,0.000271,2]
[381470556,1756226824845,5000.0,0.000271,2]
[381470557,1756226835066,-230.22068723,0.00027959,2]
[381470558,1756226840035,548.61580606,0.000271,2]
[381470559,1756226840061,4451.38419394,0.000271,2]
[381470560,1756226848444,343.09337309,0.000271,2]
[381470561,1756226856529,5000.0,0.000271,2]
[381470562,1756226872286,205.53243297,0.000271,2]
[381470563,1756226872310,4794.46756703,0.000271,2]
[381470564,1756226881472,4656.96662691,0.000271,2]
[381470565,1756226890494,548.57580606,0.000271,2]
[381470566,1756226890517,4451.42419394,0.000271,2]
[381470567,1756226898300,1802.73699337,0.000271,2]
[381470568,1756226906386,3745.84881269,0.000271,2]
[381470569,1756226906411,1254.15118731,0.000271,2]
[381470570,1756226921579,5000.0,0.000271,2]
[381470571,1756226936632,3745.85881269,0.000271,2]
[381470572,1756226936655,1254.14118731,0.000271,2]
[381470573,1756226948094,-395.3526634,0.00027959,2]
[381470574,1756226948115,-151.0,0.00027963,2]
[381470575,1756226949060,263.5463414,0.00027963,2]
[381470576,1756226952458,518.58599736,0.000271,2]
[381470577,1756226952484,4481.41400264,0.000271,2]
[381470578,1756226959270,-890.28083877,0.00028533,10]
[381470579,1756226959298,-162.429497,0.0002911,2]
[381470580,1756226959323,-250.0,0.00029666,2]
[381470581,1756226959347,-1812.7722346,0.0002977,2]
[381470582,1756226959372,-732.0,0.0002984,2]
[381470583,1756226959400,-300.0,0.0002984,2]
[381470584,1756226959426,-2209.3715701,0.00029841,2]
[381470585,1756226959450,-160.0,0.00030128,2]
[381470586,1756226959483,-890.28083877,0.00030259,13]
[381470587,1756226959508,-398.28125524,0.0003098,2]
[381470588,1756226959537,-9908.92995085,0.0003098,2]
[381470589,1756226959559,-171.0,0.00031,120]
[381470590,1756226959586,-858.2746603,0.00031148,2]
[381470591,1756226959616,-514.44085409,0.00031169,2]
[381470592,1756226959651,-521.86,0.00031238,10]
[381470593,1756226959680,-434.88,0.00031238,10]
[381470594,1756226959714,-362.4,0.00031238,10]
[381470595,1756226959743,-500.0,0.00031239,2]
[381470596,1756226959775,-462.12101815,0.00031239,2]
[381470597,1756226959805,-500.0,0.00031239,2]
[381470598,1756226959835,-500.0,0.00031239,2]
[381470599,1756226959863,-500.0,0.00031239,2]
[381470600,1756226959893,-233.80196393,0.00031239,2]
[381470601,1756226959931,1512.42914269,0.00026964,18]
[381470602,1756226968231,2752.02566736,0.000271,2]
[381470603,1756226968254,250.6151526,0.000271,2]
[381470604,1756226969045,-151.71094747,0.00027234,18]
[381470605,1756226973056,1173.86487706,0.000199,2]
[381470606,1756226973612,1173.86487694,0.00023353,2]
[381470607,1756226973880,1173.86487694,0.00026806,6]
[381470608,1756226983338,4579.92979127,0.000271,2]
[381470609,1756226999147,1647.87042519,0.000271,2]
[381470610,1756226999172,2343.77818066,0.000271,2]
[381470611,1756227001998,3862.79,0.0003207,60]
[381470612,1756227014941,3812.04332967,0.000271,2]
[381470613,1756227030488,789.95667033,0.000271,2]
[381470634,1756227031778,-305.39598237,0.00028533,10]
[381470635,1756227031790,-640.79212053,0.00028533,10]
[381470636,1756227031832,-227.67677404,0.00028533,10]
[381470637,1756227031841,-25.61325596,0.0002974,102]
[381470671,1756227037843,-129.5867641,0.0002974,102]
[381470672,1756227037853,-199.0,0.000309,120]
[381470673,1756227037874,-641.83622132,0.00031169,2]
[381470674,1756227037884,-266.19803607,0.00031239,2]
[381470675,1756227037893,-188.84548436,0.00031239,2]
[381470676,1756227037903,-400.0,0.00031239,2]
[381470677,1756227037912,-41788.8938747,0.0003124,2]
[381470707,1756227039732,-133.58334713,0.0003124,2]
[381470718,1756227039845,-1075.88216679,0.0003124,2]
[381471240,1756227045987,-32751.17221988,0.0003124,2]
[381471242,1756227045997,-302.0,0.0003124,10]
[381471244,1756227046007,-251.67,0.0003124,10]
[381471246,1756227046016,-209.73,0.0003124,10]
[381471249,1756227046025,-159.96747138,0.00031248,2]
[381471251,1756227046035,-500.0,0.00031248,2]
[381471253,1756227046045,-500.0,0.00031248,2]
[381471255,1756227046055,-500.0,0.00031248,2]
[381471257,1756227046064,-500.0,0.00031248,2]
[381471259,1756227046073,-500.0,0.00031248,2]
[381471261,1756227046083,-500.0,0.00031248,2]
[381471263,1756227046092,-607.13920444,0.00031248,2]
[381471265,1756227046101,-500.0,0.00031248,2]
[381471267,1756227046111,-500.0,0.00031248,2]
[381471269,1756227046120,-500.0,0.00031248,2]
[381471271,1756227046129,-500.0,0.00031248,2]
[381471273,1756227046138,-500.0,0.00031248,2]
[381471275,1756227046147,-500.0,0.00031248,2]
[381471277,1756227046156,-500.0,0.00031248,2]
[381471279,1756227046165,-500.0,0.00031248,2]
[381471281,1756227046175,-500.0,0.00031248,2]
[381471283,1756227046184,-624.9974431,0.00031248,2]
[381471285,1756227046193,-4943.26002453,0.00031249,2]
[381472271,1756227139153,1174.0063466,0.000199,2]
[381472272,1756227139669,1174.00634634,0.00023353,2]
[381472273,1756227139916,706.2191264,0.00021627,2]
[381472274,1756227139943,467.78721994,0.00021627,2]
[381472275,1756227140237,1174.00634634,0.00026806,6]
[381472276,1756227213457,8358.21643372,0.00027,7]
[381472277,1756227213482,10000.01,0.00027,7]
[381472278,1756227213506,240.95791048,0.00027,7]
[381472279,1756227299156,528.19841485,0.000271,7]
[381472280,1756227309698,1376.01952713,0.000199,2]
[381472281,1756227310589,1376.01952705,0.00026806,6]
[381472282,1756227310635,1376.01952705,0.0002508,2]
[381472283,1756227310715,1376.01952705,0.00021627,2]
[381472284,1756227343636,3726.77556639,0.000271,2]
[381472285,1756227343658,1273.22443361,0.000271,2]
[381472286,1756227358191,1061.44030591,0.000271,7]
[381472287,1756227359675,5000.0,0.000271,2]
[381472288,1756227375822,2665.34526048,0.000271,2]
[381472289,1756227375844,2334.65473952,0.000271,2]
[381472295,1756227391208,5000.0,0.000271,2]
[381472321,1756227399108,163.168837,0.00013699,2]
[381472322,1756227399430,163.168837,0.00020548,2]
[381472323,1756227407070,2339.01758648,0.000271,2]
[381472324,1756227407092,2660.98241352,0.000271,2]
[381472325,1756227422291,5000.0,0.000271,2]
[381472326,1756227437583,2339.02758648,0.000271,2]
[381472327,1756227437605,2660.97241352,0.000271,2]
[381472328,1756227453441,5000.0,0.000271,2]
[381472329,1756227469539,2339.03758648,0.000271,2]
[381472330,1756227469561,2660.96241352,0.000271,2]
[381472331,1756227484560,1322.11167715,0.000199,2]
[381472332,1756227484812,5000.0,0.000271,2]
[381472333,1756227484872,1016.93590933,0.0002508,2]
[381472334,1756227484904,305.17576758,0.0002508,2]
[381472335,1756227485132,1322.11167691,0.00026806,6]
[381472336,1756227485326,1322.11167691,0.00021627,2]
[381472337,1756227499984,2028.11223918,0.000271,2]
[381472338,1756227527098,5022.49863942,0.00027,7]
[381472339,1756227527120,10000.01,0.00027,7]
[381472340,1756227527143,3576.67570478,0.00027,7]
[381472341,1756227531047,5000.0,0.000271,2]
[381472342,1756227548001,1423.33429522,0.000271,2]
[381472343,1756227548025,524.58668176,0.000271,2]
[381472344,1756227549145,-163.168837,0.00027397,2]
[381472345,1756227558494,303.46285602,0.000271,2]
[381472346,1756227653678,1154.10330747,0.000199,2]
[381472347,1756227653846,1154.10330747,0.0002508,2]
[381472348,1756227654140,1154.10330747,0.00026806,6]
[381472349,1756227654678,1154.10330747,0.00021627,2]
[381472350,1756227655370,-434.89494459,0.00027798,20]
[381472351,1756227660043,-18.45637482,0.00027798,20]
[381472352,1756227699613,306.00416441,0.00026912,2]
[381472353,1756227820042,1000.22286659,0.000199,2]
[381472354,1756227820770,1000.22286647,0.00026806,6]
[381472355,1756227820813,1000.22286647,0.00021627,2]
[381472356,1756227820875,1000.22286647,0.00023353,2]
[381472357,1756227821118,248.65160193,0.0002508,2]
[381472358,1756227821145,751.57126454,0.0002508,2]
[381472359,1756227986436,892.87111159,0.000199,2]
[381472360,1756227986499,892.8711113,0.00026806,6]
[381472361,1756227986780,892.8711113,0.00021627,2]
[381472362,1756228046121,-301.37774238,0.00027256,2]
[381472363,1756228046144,-203.01623307,0.00027999,2]
[381472364,1756228046167,-300.0,0.00028098,2]
[381472365,1756228046193,-1200.0,0.00028098,2]
[381472366,1756228046219,-300.0,0.00028099,2]
[381472367,1756228046242,-1200.0,0.00028099,2]
[381472368,1756228046264,-12865.98314673,0.000281,2]
[381472370,1756228159663,803.54205782,0.000199,2]
[381472371,1756228159819,803.5420578,0.00023353,2]
[381472372,1756228159923,803.5420578,0.00026806,6]
[381472373,1756228160379,803.5420578,0.0002508,2]
[381472374,1756228162088,-300.0,0.00028099,2]
[381472375,1756228162110,-37277.50102385,0.000281,2]